Workbook

Sheet DÖNEM
B1: DERS PROGRAMIM
B2: GÜZ DÖNEMİ
C3: BAŞLANGIÇ ZAMANI | D3: ZAMAN ARALIĞI | F3: YIL
C4: 09:00:00 | D4: 60 | E4: (Dakika Cinsinden)
B5: SAAT | C5: PZT | D5: SAL | E5: ÇAR | F5: PER | G5: CUM | H5: CTS | I5: PAZ
B6: =BaşlangıçZamani+TIME(0,(ROW(A1)-1)*ZamanAralığı,0) -> 09:00:00 | C6: Kahvaltı | D6: Kahvaltı | E6: Kahvaltı | F6: Kahvaltı | G6: Kahvaltı
B7: =BaşlangıçZamani+TIME(0,(ROW(A2)-1)*ZamanAralığı,0) -> 10:00:00 | C7: İşletme: Ders Bina B, Oda 256
B8: 11:00:00 | F8: Fizik: Laboratuvar Bina J, Oda 309
B9: 12:00:00
B10: 13:00:00
B11: 14:00:00
B12: 15:00:00
B13: 16:00:00
B14: 17:00:00
B15: 18:00:00
B16: 19:00:00
B17: 20:00:00
B18: 21:00:00
B19: 22:00:00
B20: 23:00:00
B21: 1
B22: 1.041666667
B23: 1.083333333
B24: 1.125
B25: 1.166666667
B26: 1.208333333
B27: =BaşlangıçZamani+TIME(0,(ROW(A22)-1)*ZamanAralığı,0) -> 1.25
B28: =BaşlangıçZamani+TIME(0,(ROW(A23)-1)*ZamanAralığı,0) -> 1.291666667
B29: =BaşlangıçZamani+TIME(0,(ROW(A24)-1)*ZamanAralığı,0) -> 1.333333333

Sheet KREDİ
B1: ÜNİVERSİTE
B2: KREDİ PLANLAYICISI
B3: Derece | C3: =Yıl -> YIL
B4: GENEL İLERLEME DURUMU | D4: GENEL İLERLEME DURUMU
B5: =AVERAGE(Dersler[NOT]) -> 3.5 | C5: =IFERROR(TEXT(AVERAGEIF(Dersler[TAMAMLANAN],"Evet",Dersler[NOT]),"0,00"),"0,00")&" Güncel Not Ortalaması" -> 3,50 Güncel Not Ortalaması | D5: =COUNTIF(Dersler[TAMAMLANAN],"Evet")/COUNTA(Dersler[DERS ADI]) -> 0.6666666667 | E5: =TEXT(COUNTIF(Dersler[TAMAMLANAN],"Evet")/COUNTA(Dersler[DERS ADI]),"0%")&" Tamamlandı" -> 67% Tamamlandı
B6: Not: Aşağıdaki kredi özeti, aşağıdaki Üniversite Dersleri tablosuna yaptığınız girişlerle otomatik olarak doldurulur
B7: GEREKSİNİM | C7: TOPLAM KREDİ | D7: KAZANILAN | E7: ZORUNLU
B8: Akademik Anadal | C8: =IF(SUMIF(Dersler[GEREKSİNİM],KREDİ!$B8,Dersler[KREDİ])=0,"0",SUMIF(Dersler[GEREKSİNİM],KREDİ!$B8,Dersler[KREDİ])) -> 4 | D8: =SUMIFS(Dersler[KREDİ],Dersler[GEREKSİNİM],KREDİ!$B8,Dersler[TAMAMLANAN],"Evet") -> 4 | E8: =SUMIF(Dersler[GEREKSİNİM],KREDİ!$B8,Dersler[KREDİ])-SUMIFS(Dersler[KREDİ],Dersler[GEREKSİNİM],KREDİ!$B8,Dersler[TAMAMLANAN],"Evet") -> 0
B9: Akademik Yan Dal | C9: =IF(SUMIF(Dersler[GEREKSİNİM],KREDİ!$B9,Dersler[KREDİ])=0,"0",SUMIF(Dersler[GEREKSİNİM],KREDİ!$B9,Dersler[KREDİ])) -> 3 | D9: =SUMIFS(Dersler[KREDİ],Dersler[GEREKSİNİM],KREDİ!$B9,Dersler[TAMAMLANAN],"Evet") -> 0 | E9: =SUMIF(Dersler[GEREKSİNİM],KREDİ!$B9,Dersler[KREDİ])-SUMIFS(Dersler[KREDİ],Dersler[GEREKSİNİM],KREDİ!$B9,Dersler[TAMAMLANAN],"Evet") -> 3
B10: Seçmeli Ders | C10: =IF(SUMIF(Dersler[GEREKSİNİM],KREDİ!$B10,Dersler[KREDİ])=0,"0",SUMIF(Dersler[GEREKSİNİM],KREDİ!$B10,Dersler[KREDİ])) -> 2 | D10: =SUMIFS(Dersler[KREDİ],Dersler[GEREKSİNİM],KREDİ!$B10,Dersler[TAMAMLANAN],"Evet") -> 2 | E10: =SUMIF(Dersler[GEREKSİNİM],KREDİ!$B10,Dersler[KREDİ])-SUMIFS(Dersler[KREDİ],Dersler[GEREKSİNİM],KREDİ!$B10,Dersler[TAMAMLANAN],"Evet") -> 0
B11: Genel Çalışma | C11: =IF(SUMIF(Dersler[GEREKSİNİM],KREDİ!$B11,Dersler[KREDİ])=0,"0",SUMIF(Dersler[GEREKSİNİM],KREDİ!$B11,Dersler[KREDİ])) -> 0 | D11: =SUMIFS(Dersler[KREDİ],Dersler[GEREKSİNİM],KREDİ!$B11,Dersler[TAMAMLANAN],"Evet") -> 0 | E11: =SUMIF(Dersler[GEREKSİNİM],KREDİ!$B11,Dersler[KREDİ])-SUMIFS(Dersler[KREDİ],Dersler[GEREKSİNİM],KREDİ!$B11,Dersler[TAMAMLANAN],"Evet") -> 0
B12: Toplam | C12: =SUBTOTAL(109,KREDİ!$C$8:$C$11) -> 9 | D12: =SUBTOTAL(109,KREDİ!$D$8:$D$11) -> 6 | E12: =SUBTOTAL(109,KREDİ!$E$8:$E$11) -> 3
B13: Dersler
B14: DERS ADI | C14: DERS NO | D14: GEREKSİNİM | E14: KREDİ | F14: TAMAMLANAN | G14: NOT | H14: DÖNEM
B15: Ders 1 | C15: Numara | D15: Akademik Anadal | E15: 4 | F15: Evet | G15: 4.0 | H15: Dönem 1
B16: Ders 2 | C16: Numara | D16: Akademik Yan Dal | E16: 3 | F16: Hayır | H16: Dönem 1
B17: Ders 3 | C17: Numara | D17: Seçmeli Ders | E17: 2 | F17: Evet | G17: 3.0 | H17: Dönem 1

Sheet BÜTÇE
B1: =Üniversite -> ÜNİVERSİTE
B2: BÜTÇE İZLEYİCİSİ
B3: Bütçem | C3: =Yıl -> YIL
B4: GELİRİN HARCANAN YÜZDESİ
B5: =NET_AYLIK_GİDERLER/NET_AYLIK_GELİR -> 75%
B6: =B5 -> 0.7454545455
B7: NET AYLIK GELİR | C7: NET AYLIK GİDERLER | D7: BAKİYE
B8: =C10 -> ₺2,750 | C8: ='NET AYLIK GİDERLER'!C4+'DÖNEM GİDERLERİ'!D4 -> ₺2,050 | D8: =NET_AYLIK_GELİR-NET_AYLIK_GİDERLER -> ₺700
B9: Dönem içindeki aylar | C9: 4
B10: AYLIK GELİR | C10: =SUM(AylıkGelir[TUTAR]) -> ₺2,750
B11: ÖĞE | C11: TUTAR
B12: Sabit gelir | C12: ₺1,500
B13: Mali yardım | C13: ₺500
B14: Krediler | C14: ₺500
B15: Diğer gelirler | C15: ₺250

Sheet NET AYLIK GİDERLER
B1: =Üniversite -> ÜNİVERSİTE
B2: BÜTÇE İZLEYİCİSİ
B3: Aylık Giderler | C3: =Yıl -> YIL
B4: AYLIK GİDERLER | C4: =SUM(AylıkGiderler[TUTAR]) -> ₺1,675
B5: ÖĞE | C5: TUTAR
B6: Kira | C6: ₺300
B7: Kamu hizmetleri | C7: ₺50
B8: Cep telefonu | C8: ₺75
B9: Market | C9: ₺250
B10: Araba giderleri | C10: ₺50
B11: Öğrenci kredileri | C11: ₺500
B12: Kredi kartları | C12: ₺275
B13: Sigorta | C13: ₺125
B14: Eğlence | C14: ₺50
B15: Çeşitli | C15: ₺0

Sheet DÖNEM GİDERLERİ
B1: =Üniversite -> ÜNİVERSİTE
B2: BÜTÇE İZLEYİCİSİ
B3: Dönem Giderleri | C3: =Yıl -> YIL
B4: DÖNEM GİDERLERİ (Toplam/Aylık) | C4: =SUM(DönemGiderleri[TUTAR]) -> ₺1,500 | D4: =SUM(DönemGiderleri[AYLIK]) -> ₺375
B5: ÖĞE | C5: TUTAR | D5: AYLIK
B6: Okul ücreti | C6: ₺750 | D6: =DönemGiderleri[[#This Row],[TUTAR]]/Dönem_içindeki_aylar -> ₺188
B7: Laboratuvar ücretleri | C7: ₺250 | D7: =DönemGiderleri[[#This Row],[TUTAR]]/Dönem_içindeki_aylar -> ₺63
B8: Kitaplar | C8: ₺500 | D8: =DönemGiderleri[[#This Row],[TUTAR]]/Dönem_içindeki_aylar -> ₺125
B9: Depozitolar | C9: ₺0 | D9: =DönemGiderleri[[#This Row],[TUTAR]]/Dönem_içindeki_aylar -> ₺0
B10: Ulaşım | C10: ₺0 | D10: =DönemGiderleri[[#This Row],[TUTAR]]/Dönem_içindeki_aylar -> ₺0
B11: Diğer ücretler | C11: ₺0 | D11: =DönemGiderleri[[#This Row],[TUTAR]]/Dönem_içindeki_aylar -> ₺0

Sheet KİTAPLAR
B1: =Üniversite -> ÜNİVERSİTE
B2: KİTAP İZLEYİCİSİ
B3: Kitap Listesi
B4: AD | C4: YAZAR | D4: DERS | E4: NEREDEN SATIN ALINIR? | F4: ISBN | G4: NOTLAR
B5: Kitap Adı | C5: Yazar | D5: Ders | E5: Konum | F5: Numara
B6: Kitap Adı | C6: Yazar | D6: Ders | E6: Konum | F6: Numara
B7: Kitap Adı | C7: Yazar | D7: Ders | E7: Konum | F7: Numara
